Cogmind - Beta 9.6 @@@ ROGUE MODE // 2020.09.03 @ 14:37:19 // AFD2020/Player2 Player: Hermelin Result: Core destroyed Performance ------------- Evolutions (6) 3000 Regions Visited (23) 4600 Robots Destroyed (225) 1125 Value Destroyed (9826) 9826 Prototype IDs (222) 4440 Alien Tech Used (0) 0 Bonus (12222) 12222 TOTAL SCORE: 35213 Bonus ------- High Alert Combat Kills 2380 Follower Combat Kills 6973 Entered Garrisons 800 Used RIF Installer 2000 Met Data Miner 300 Used Data Conduit 3000 Met R17 at Cetus 500 Friendly Fire -3731 Cogmind --------- Core Integrity 0/1150 Matter 300/300 Energy 560/560 System Corruption 4% Temperature Cool (42) Movement Treading (180) Ox1 Location -4/Hub_04(d) Parts ------- > --- POWER (2) -------- Reinforced Fission Core Quantum Reactor > --- PROPULSION (3) --- Medium Treads Improved Heavy Treads > --- UTILITY (11) ----- Advanced Heat Sink Large Storage Unit High-capacity Storage Unit Advanced Signal Interpreter Improved Target Analyzer Improved Weapon Cycler Centrium Medium Armor Plating Experimental Thermal Shield Improved Force Field Ghost Barrier High-powered Tractor Beam > --- WEAPON (3) ------- Heavy Wave Gun Coil Gun Railgun > --- INVENTORY (18) --- Light Antimatter Reactor Centrium Heavy Treads Centrium Heavy Treads Advanced Coolant Injector Improved Matter Compressor (300) Improved Phase Shifter Improved Medium Armor Plating Improved Medium Armor Plating Relay Coupler [Sentry] (24) Relay Coupler [Hunter] (20) Advanced Variable Charge Gun Advanced Variable Charge Gun Heavy Disruptor Cannon Matter Neutralizer Advanced Datajack Peak State ------------ > --- POWER ------------ Reinforced Fission Core Quantum Reactor > --- PROPULSION ------- Advanced Medium Treads Improved Heavy Treads > --- UTILITY ---------- Advanced Heat Sink Advanced Coolant Injector Large Storage Unit High-capacity Storage Unit Advanced Signal Interpreter Improved Target Analyzer Improved Weapon Cycler Centrium Medium Armor Plating Experimental Thermal Shield Improved Force Field Ghost Barrier > --- WEAPON ----------- Advanced Variable Charge Gun Coil Gun Railgun > --- INVENTORY -------- Light Antimatter Reactor Centrium Heavy Treads Centrium Heavy Treads Improved Matter Compressor Improved Hacking Suite Relay Coupler [Sentry] Relay Coupler [Hunter] Advanced Variable Charge Gun Advanced Variable Charge Gun Heavy Disruptor Cannon Matter Neutralizer Advanced Datajack [Rating: 128] Favorites ----------- Power Reinforced Ion Engine Engine Reinforced Ion Engine Power Core Reinforced Fission Core Reactor Antimatter Reactor Propulsion Armored Treads Treads Armored Treads Wheel Armored Wheel Hover Unit Cooled Airjet Utility Large Storage Unit Device Experimental Thermal Shield Storage Large Storage Unit Processor Advanced Signal Interpreter Hackware Hacking Suite Protection Hardened Medium Armor Plating Weapon Enhanced Autogun Energy Gun Heavy Laser Energy Cannon Heavy Phase Cannon Ballistic Gun Enhanced Autogun Ballistic Cannon Flak Cannon Special Weapon Plasma Flamer Slashing Weapon Katana Special Melee Weapon Datajack Build | -11 -10 -9 -9 -8 -8 -7 -7 -7 -7 -6 -6 -6 -6 -6 -5 -5 -5 -5 -4 -4 -4 -4 -4 ------- Run | Scr Mat Mat Min Mat Sto Fac Low Low Dat Pro Fac Gar Fac Gar Fac Gar Fac Gar Fac Ext Cet Arc Hub Slots Evolved 12 | . . 2 . 2 . 2 . . . . 2 . . . 2 . . . 2 . . . . Power 1 | . . . . . . . . . . . 1 . . . . . . . . . . . . Propulsion 1 | . . . . 1 . . . . . . . . . . . . . . . . . . . Utility 9 | . . 2 . 1 . 1 . . . . 1 . . . 2 . . . 2 . . . . Weapon 1 | . . . . . . 1 . . . . . . . . . . . . . . . . . Parts Attached 182 | 7 4 23 7 11 14 12 10 10 6 1 2 1 . 2 2 4 10 15 10 14 8 1 8 Power 16 | 1 1 2 . 1 . 1 . . 1 . 1 . . 1 . . 1 1 . 3 2 . . Engine 7 | 1 1 2 . 1 . 1 . . . . . . . . . . . 1 . . . . . Core 3 | . . . . . . . . . . . 1 . . . . . 1 . . . 1 . . Reactor 6 | . . . . . . . . . 1 . . . . 1 . . . . . 3 1 . . Propulsion 31 | 2 . 4 . 3 3 6 . 2 . 1 . . . 1 . 1 3 1 1 2 . . 1 Treads 22 | 1 . 3 . 2 2 1 . 2 . 1 . . . 1 . 1 3 1 1 2 . . 1 Leg . | . . . . . . . . . . . . . . . . . . . . . . . . Wheel 6 | 1 . 1 . 1 1 2 . . . . . . . . . . . . . . . . . Hover 3 | . . . . . . 3 . . . . . . . . . . . . . . . . . Flight . | . . . . . . . . . . . . . . . . . . . . . . . . Utility 92 | 2 1 13 4 5 6 3 9 8 2 . 1 1 . . 2 2 4 7 7 6 4 . 5 Device 39 | 1 1 3 1 1 3 1 4 4 1 . 1 . . . 1 . 1 3 4 3 2 . 4 Storage 7 | 1 . 4 1 . . . . . . . . 1 . . . . . . . . . . . Processor 3 | . . 1 . . . . . . . . . . . . . . . 1 1 . . . . Hackware 4 | . . 1 . . . . . . . . . . . . . . . 1 2 . . . . Protection 39 | . . 4 2 4 3 2 5 4 1 . . . . . 1 2 3 2 . 3 2 . 1 Artifact . | . . . . . . . . . . . . . . . . . . . . . . . . Weapon 43 | 2 2 4 3 2 5 2 1 . 3 . . . . . . 1 2 6 2 3 2 1 2 Energy Gun 9 | 2 . 1 . . . . . . . . . . . . . . . 2 . 2 1 . 1 Energy Cannon 3 | . 2 . . . . . . . . . . . . . . . . . 1 . . . . Ballistic Gun 22 | . . 3 2 2 1 2 1 . 1 . . . . . . 1 2 2 1 1 1 1 1 Ballistic Cannon 2 | . . . . . 2 . . . . . . . . . . . . . . . . . . Launcher . | . . . . . . . . . . . . . . . . . . . . . . . . Special Weapon 1 | . . . . . . . . . . . . . . . . . . 1 . . . . . Impact Weapon . | . . . . . . . . . . . . . . . . . . . . . . . . Slashing Weapon 3 | . . . 1 . 1 . . . 1 . . . . . . . . . . . . . . Piercing Weapon . | . . . . . . . . . . . . . . . . . . . . . . . . Special Melee Weapon 3 | . . . . . 1 . . . 1 . . . . . . . . 1 . . . . . Unidentified Prototypes 5 | . . 1 1 . 1 1 1 . . . . . . . . . . . . . . . . Parts Lost 47 | . . 2 1 4 1 . . . 1 . . . . 1 . 3 5 15 2 5 3 . 4 Power 3 | . . . . . . . . . . . . . . . . . 1 1 . 1 . . . Propulsion 9 | . . . . 2 1 . . . . . . . . 1 . . 1 3 . 1 . . . Utility 22 | . . 1 . 1 . . . . 1 . . . . . . 2 2 6 2 1 3 . 3 Weapon 13 | . . 1 1 1 . . . . . . . . . . . 1 1 5 . 2 . . 1 Highest Loss Streak 14 | . . 1 1 4 1 . . . 1 . . . . 1 . 2 3 14 2 4 2 . 3 Average Slot Usage (%) 95 | . 100 99 100 99 99 92 90 94 100 100 93 100 100 100 99 99 96 85 90 91 90 94 94 Engine 5 | . 14 10 11 9 9 6 7 7 6 . . . . . . . . 3 5 1 . . . Core 1 | . . . . . . . . . . . . 6 6 1 . . . 5 5 5 5 5 5 Reactor 2 | . . . . . . . . . . 7 6 6 6 10 11 11 8 . . 3 5 5 5 Treads 13 | . 14 11 11 11 17 8 7 17 23 23 20 20 20 20 17 17 16 7 9 9 10 10 10 Wheel 4 | . 14 11 11 15 9 6 7 2 . . . . . . . . . . . . . . . Device 10 | . 14 4 . 5 7 6 6 6 7 7 13 13 13 13 17 17 17 15 16 15 16 21 24 Storage 14 | . 14 16 22 18 18 15 15 15 15 15 13 13 13 13 11 11 11 11 10 10 10 10 10 Processor 2 | . . 1 . . . . . . . . . . . . . . . 3 6 10 10 10 10 Hackware 5 | . . 9 11 9 6 . . . . . . . . . . . . 3 13 12 10 10 6 Protection 14 | . . 11 11 12 13 23 22 20 23 23 20 20 20 20 22 22 21 12 6 5 5 5 5 Energy Gun 2 | . 12 8 . . . . . . . . . . . . . . . 8 7 2 5 5 5 Energy Cannon 1 | . 15 2 . . . . . . . . . . . . . . . . 2 3 . . . Ballistic Gun 14 | . . 10 21 18 10 15 22 23 21 23 20 20 20 20 17 16 16 6 5 9 10 10 10 Naked Turns . | . . . . . . . . . . . . . . . . . . . . . . . . Heaviest Build 130 | 11 14 49 65 70 78 95 95 92 94 94 100 100 100 107 117 123 129 129 111 127 122 117 130 Greatest Support 105 | 20 16 23 12 24 24 43 28 70 70 70 68 68 68 68 60 63 66 70 93 105 105 105 105 Greatest Overweight (x) 7 | . . 4 5 5 6 7 3 3 1 1 1 1 1 1 1 1 2 1 1 1 1 1 1 Average Overweight (x) 2 | . . 2 4 2 5 4 2 1 1 1 1 1 1 1 1 1 1 1 1 1 1 1 1 Largest Inventory Capacity 18 | 6 6 16 18 18 18 18 18 18 18 18 18 18 18 18 18 18 18 18 18 18 18 18 18 Average Capacity 16 | 5 6 9 17 18 18 18 18 18 18 18 18 18 18 18 18 18 18 18 18 18 18 18 18 Most Carried 18 | 6 6 16 18 18 18 18 18 18 18 18 17 18 18 18 17 18 18 18 18 18 18 18 18 Average Carried 15 | 3 5 9 17 17 17 17 17 17 17 17 17 17 17 17 16 17 17 12 16 17 17 18 17 Final Capacity 18 | 6 6 16 18 18 18 18 18 18 18 18 18 18 18 18 18 18 18 18 18 18 18 18 18 Final Carried 18 | 6 6 16 18 18 18 18 18 18 18 18 17 18 18 17 17 17 18 14 18 18 18 18 18 Class Distribution -------------------- 35% | Scavenger-Tank 22% | Mutant 20% | Tank 15% | Scavenger-Mutant 3% | Bothacker-Skirmisher Dominant Class ---------------- Mutant | -10/Materials Mutant | -9/Materials Mutant | -9/Mines Scavenger-Mutant | -8/Materials Mutant | -8/Storage Tank | -7/Factory Tank | -7/Lower Caves Tank | -7/Lower Caves Scavenger-Tank | -7/Data Miner Scavenger-Tank | -6/Proximity Caves Scavenger-Tank | -6/Factory Scavenger-Tank | -6/Garrison Scavenger-Tank | -6/Factory Scavenger-Tank | -6/Garrison Scavenger-Tank | -5/Factory Scavenger-Tank | -5/Garrison Scavenger-Tank | -5/Factory Scavenger-Tank | -5/Garrison Scavenger-Tank | -4/Factory Scavenger-Tank | -4/Extension Scavenger-Tank | -4/Cetus Scavenger-Tank | -4/Archives Scavenger-Tank | -4/Hub_04(d) Resources | -11 -10 -9 -9 -8 -8 -7 -7 -7 -7 -6 -6 -6 -6 -6 -5 -5 -5 -5 -4 -4 -4 -4 -4 ----------- Run | Scr Mat Mat Min Mat Sto Fac Low Low Dat Pro Fac Gar Fac Gar Fac Gar Fac Gar Fac Ext Cet Arc Hub Matter Collected 9137 | 270 40 445 141 610 703 184 1025 1691 247 337 46 269 72 159 . 250 441 439 194 682 194 43 655 Remotely 1721 | . . . . . . . . . . . 46 269 72 159 . 250 441 88 . . . . 396 Salvage Created 11331 | 155 311 1174 217 1041 1048 231 497 996 254 248 85 543 120 351 . 310 562 283 139 935 243 159 1429 Parts 489 | 11 14 66 16 55 48 8 20 10 9 16 7 22 4 17 . 21 23 11 7 36 9 5 54 Haulers Intercepted 11 | . 1 5 . 1 1 . . . . . . . . . . . . . . 1 . . 2 Recyclers Shooed 5 | . . 2 . . 1 1 . . . . . . . . . . . . . . . . 1 Parts Field Recycled . | . . . . . . . . . . . . . . . . . . . . . . . . Retrieved Matter . | . . . . . . . . . . . . . . . . . . . . . . . . Parts Self-Destructed 59 | . . . . . . . 22 11 . 26 . . . . . . . . . . . . . Prevented . | . . . . . . . . . . . . . . . . . . . . . . . . Kills | -11 -10 -9 -9 -8 -8 -7 -7 -7 -7 -6 -6 -6 -6 -6 -5 -5 -5 -5 -4 -4 -4 -4 -4 ------- Run | Scr Mat Mat Min Mat Sto Fac Low Low Dat Pro Fac Gar Fac Gar Fac Gar Fac Gar Fac Ext Cet Arc Hub Combat Hostiles Destroyed 176 | . 5 17 7 20 23 2 10 3 3 5 3 8 2 7 . 8 7 6 2 11 6 2 19 Guns 159 | . 1 15 7 20 14 2 10 3 3 5 3 8 2 7 . 8 7 6 1 10 6 2 19 Cannons 17 | . 4 2 . . 9 . . . . . . . . . . . . . 1 1 . . . Classes Destroyed 19 | 3 2 5 1 2 1 . . 1 . 1 . 1 . . . . 1 . . 1 . . . Worker 7 | 1 . 1 . 1 1 . . . . . . . . . . . . . . . . . 3 Builder 6 | . . 1 1 . 1 . . . . . . . . . . . . . . 2 . . 1 Tunneler 4 | 3 1 . . . . . . . . . . . . . . . . . . . . . . Hauler 11 | . 1 5 . 1 1 . . . . . . . . . . . . . . 1 . . 2 Recycler 6 | 1 . 1 . . 1 2 . . . . . . . . . . . . . . . . 1 Minesweeper 1 | . . . . . . . . 1 . . . . . . . . . . . . . . . Operator 4 | . . 1 . . 1 . . . . . . . . . . . . . . . . 1 1 Watcher 6 | . . 2 . . 1 . . . . . . . . . . . 1 . . . . . 2 Swarmer 39 | . . 4 3 2 3 . . . . 2 3 3 . 2 . 6 . 2 . 1 3 . 5 Saboteur 2 | . . . . . . . . . . . . . . . . . . . . 1 . . 1 Grunt 79 | . 5 9 3 12 14 2 5 3 . . . 4 1 3 . . 3 4 . 5 . . 6 Brawler 7 | . . . . . 1 . 2 . . . . . . . . . 2 . . 1 . . 1 Duelist 4 | . . . . 1 1 . 1 . . . . . . . . . . . . 1 . . . Sentry 25 | . . 4 . 4 4 . . . . 1 . . 1 2 . 1 1 . 1 1 . 2 3 Specialist 1 | . . . . . . . . . . . . 1 . . . . . . . . . . . Hunter 5 | . . . . 1 . . . . . 1 . . . . . 1 . . . 1 . . 1 Programmer 4 | . . . . . . . . . . . . . . . . . 1 . 1 . . . 2 Behemoth 1 | . . . . . . . . . . 1 . . . . . . . . . . . . . Cetus Guard 3 | . . . . . . . . . . . . . . . . . . . . . 3 . . Enhanced Grunt 3 | . . . . . . . . . 3 . . . . . . . . . . . . . . Assembled 1 | . . . 1 . . . . . . . . . . . . . . . . . . . . Wasp 2 | . . . . . . . 2 . . . . . . . . . . . . . . . . Thug 2 | . . . . . . . . . . . . . . . . . . . . 2 . . . Best Kill Streak 10 | 2 3 4 3 3 5 2 4 2 2 2 3 3 1 4 . 6 4 4 1 4 4 2 10 Combat Bots Only 8 | . 3 4 3 3 4 2 4 2 2 2 3 3 1 4 . 6 3 4 1 4 4 2 8 Max Kills in Single Turn 2 | 1 2 2 2 1 1 1 1 1 1 1 1 2 1 2 . 2 1 2 1 2 2 1 2 Gunslinging 1 | . . 1 . . . . . . . . . 1 . 1 . 1 . . . . 1 . . Exploded . | . . . . . . . . . . . . . . . . . . . . . . . . Melee . | . . . . . . . . . . . . . . . . . . . . . . . . Uniques/NPCs Destroyed 2 | . . . . . 1 . . . 1 . . . . . . . . . . . . . . 01-MTF (-8/Storage) Data Miner (-7/Data Miner) Combat | -11 -10 -9 -9 -8 -8 -7 -7 -7 -7 -6 -6 -6 -6 -6 -5 -5 -5 -5 -4 -4 -4 -4 -4 -------- Run | Scr Mat Mat Min Mat Sto Fac Low Low Dat Pro Fac Gar Fac Gar Fac Gar Fac Gar Fac Ext Cet Arc Hub Damage Taken 12926 | . 160 942 122 1283 826 31 773 24 230 90 41 168 84 369 . 930 1196 1952 336 1256 974 224 915 Core 1001 | . 50 23 28 147 94 . 42 . . 23 . 8 . 18 . 42 120 223 38 49 80 . 16 Absorbed by Shields 1279 | . . . . 283 147 9 135 6 3 . 12 45 20 . . . . 143 . . . . 476 Reduced by Siege Mode 54 | . . . . . . . . . . . . . . . . . . . . 5 8 13 28 Core Remaining (%) 58 | 100 80 . 57 . 19 . . . . 71 . . . 74 . . . 6 . . . . . Volleys Fired 658 | 15 19 82 16 85 66 13 37 17 16 13 4 29 8 16 . 26 30 17 10 40 18 23 58 Largest 3 | 2 2 2 2 2 2 3 3 3 3 3 3 3 3 3 . 3 3 3 3 3 3 3 3 Hottest 202 | 90 120 120 46 46 69 92 73 73 73 73 73 73 73 73 . 76 88 161 202 202 146 145 153 Shots Fired 1551 | 30 38 128 32 170 132 39 111 51 48 39 12 83 24 48 . 63 88 33 30 113 49 36 154 Gun 1424 | 30 30 108 32 170 78 26 111 51 48 39 12 83 24 48 . 63 88 32 27 85 49 36 154 Cannon 126 | . 8 20 . . 54 13 . . . . . . . . . . . . 3 28 . . . Launcher . | . . . . . . . . . . . . . . . . . . . . . . . . Special 1 | . . . . . . . . . . . . . . . . . . 1 . . . . . Kinetic 1289 | . . 75 32 170 132 39 111 51 48 39 12 83 24 48 . 63 88 25 10 73 36 20 110 Thermal 229 | 30 38 20 . . . . . . . . . . . . . . . 8 20 40 13 16 44 Explosive . | . . . . . . . . . . . . . . . . . . . . . . . . Electromagnetic 33 | . . 33 . . . . . . . . . . . . . . . . . . . . . Robot Hit Streak 20 | 5 9 14 5 10 10 9 11 14 18 16 3 9 13 13 . 10 18 7 8 20 19 11 17 Robot Miss Streak 6 | 2 3 3 4 4 5 6 5 1 3 2 1 3 2 6 . 3 2 4 2 4 3 1 3 Penetration Max 3 | . . . . . . . . . . . . . . . . . 1 3 1 2 1 1 2 Secondary Targets 40 | . . 1 1 4 . . 3 1 1 1 . 4 . 4 . 3 3 1 1 . 4 1 7 Max Gunslinging Chain 1 | . . 1 1 1 . . 1 1 1 1 . 1 . 1 . 1 1 1 1 . 1 1 1 Shots Hit Robots 1120 | 15 27 95 17 124 101 21 72 31 36 31 6 58 18 34 . 43 74 23 24 79 41 28 122 Core Hits 520 | 6 13 45 10 54 74 12 26 16 14 13 4 21 6 14 . 18 31 15 8 34 17 11 58 Critical Hits 39 | . . . . 1 . 1 . 2 . 1 . 1 . 1 . 1 10 6 . 6 1 1 7 Critical Kills 16 | . . . . . . . . 2 . 1 . 1 . 1 . . 3 3 . 4 . . 1 Critical Parts Destroyed 16 | . . . . 1 . 1 . . . . . . . . . . 4 3 . . 1 . 6 Melee Attacks 20 | . . . 7 . 8 . . . 3 . . . . . . . . 2 . . . . . Impact . | . . . . . . . . . . . . . . . . . . . . . . . . Slashing 14 | . . . 7 . 6 . . . 1 . . . . . . . . . . . . . . Piercing . | . . . . . . . . . . . . . . . . . . . . . . . . Sneak Attacks 12 | . . . 1 . 8 . . . 3 . . . . . . . . . . . . . . Combat Hostiles . | . . . . . . . . . . . . . . . . . . . . . . . . Follow-up Attacks . | . . . . . . . . . . . . . . . . . . . . . . . . Damage Inflicted 23739 | 182 375 1635 335 1964 2344 386 1278 587 635 544 71 810 271 489 . 699 1388 404 612 2510 1274 870 4076 Guns 20397 | 182 248 1324 266 1964 928 198 1278 587 535 544 71 810 271 489 . 699 1388 390 471 1581 1274 870 4029 Cannons 2445 | . 127 235 . . 855 188 . . . . . . . . . . . . 141 899 . . . Explosions 76 | . . 76 . . . . . . . . . . . . . . . . . . . . . Melee 730 | . . . 69 . 561 . . . 100 . . . . . . . . . . . . . . Ramming 77 | . . . . . . . . . . . . . . . . . . . . 30 . . 47 Kinetic 18210 | . . 823 266 1964 1783 386 1278 587 535 544 71 810 271 489 . 699 1388 319 207 1362 941 503 2984 Thermal 4221 | 182 375 311 . . . . . . . . . . . . . . . 85 405 1118 333 367 1045 Explosive . | . . . . . . . . . . . . . . . . . . . . . . . . Electromagnetic 501 | . . 501 . . . . . . . . . . . . . . . . . . . . . Impact . | . . . . . . . . . . . . . . . . . . . . . . . . Slashing 730 | . . . 69 . 561 . . . 100 . . . . . . . . . . . . . . Piercing . | . . . . . . . . . . . . . . . . . . . . . . . . Highest Corruption 4 | . 1 1 1 . . . . . . . . . . . . . 3 3 2 2 2 2 4 Average Corruption 1 | . 1 1 1 . . . . . . . . . . . . . 1 3 1 2 2 2 2 Corruption Purged . | . . . . . . . . . . . . . . . . . . . . . . . . Effects 51 | . . 1 2 . . . . . . . . . . . . . 8 13 . 11 4 5 7 Message Errors 9 | . . 1 1 . . . . . . . . . . . . . . 2 . 2 . 1 2 Matter Fused 4 | . . . . . . . . . . . . . . . . . . 4 . . . . . Heat Flow Errors 3 | . . . . . . . . . . . . . . . . . . 1 . 1 . . 1 Energy Discharges 11 | . . . . . . . . . . . . . . . . . . 3 . 2 3 2 1 Data Loss (minor) 9 | . . . 1 . . . . . . . . . . . . . 3 1 . 4 . . . Targeting Errors 13 | . . . . . . . . . . . . . . . . . 3 2 . 2 1 2 3 Weapon Failures 2 | . . . . . . . . . . . . . . . . . 2 . . . . . . Overload Shots . | . . . . . . . . . . . . . . . . . . . . . . . . Overflow Damage 160 | . 6 . 39 . 74 . . . . . . . . . . . . . 7 34 . . . Projectiles 47 | . 6 . . . . . . . . . . . . . . . . . 7 34 . . . Explosions . | . . . . . . . . . . . . . . . . . . . . . . . . Melee 113 | . . . 39 . 74 . . . . . . . . . . . . . . . . . . Knockbacks 19 | . . . . . 14 5 . . . . . . . . . . . . . . . . . Impact . | . . . . . . . . . . . . . . . . . . . . . . . . Kinetic 18 | . . . . . 13 5 . . . . . . . . . . . . . . . . . Secondary 1 | . . . . . 1 . . . . . . . . . . . . . . . . . . Self-Inflicted Damage 74 | . . 74 . . . . . . . . . . . . . . . . . . . . . Shots 2 | . . 2 . . . . . . . . . . . . . . . . . . . . . Rammed 2 | . . . . . . . . . . . . . . . . . . . . 1 . . 1 Targets Rammed 4 | . . . . . . . . 1 . . . . . . . . . . . 2 . . 1 Kicked . | . . . . . . . . . . . . . . . . . . . . . . . . Crushed 2 | . . . . . . . . 1 . . . . . . . . . . . 1 . . . Highest Temperature 408 | 150 229 117 2 16 148 152 398 118 130 15 . 4 16 15 . 29 95 180 150 335 275 175 408 Average Temperature 64 | 53 72 27 2 6 47 51 123 45 57 15 . 2 6 6 . 12 26 41 67 81 92 67 122 Received Heat Transfer 2847 | . 93 279 24 642 327 14 149 14 29 18 . 19 33 93 . 57 261 550 27 84 18 18 98 Effects 2 | . . . . . . . 1 . . . . . . . . . . . . . . . 1 Energy Bleed 1 | . . . . . . . . . . . . . . . . . . . . . . . 1 Matter Decay 1 | . . . . . . . 1 . . . . . . . . . . . . . . . . Siege Activations 12 | . . . . . . . . . . . . . . . . . . . 1 4 2 2 3 Total Turns 152 | . . . . . . . . . . . . . . . . . . . 4 43 39 11 55 Longest Duration 36 | . . . . . . . . . . . . . . . . . . . 4 22 22 8 36 Robots Corrupted . | . . . . . . . . . . . . . . . . . . . . . . . . Combat Hostiles . | . . . . . . . . . . . . . . . . . . . . . . . . Parts Fried 3 | . . 2 . . . . 1 . . . . . . . . . . . . . . . . Impact Corruptions 1 | . . . . . . . . . . . . . . . . . . . . 1 . . . Robots Melted . | . . . . . . . . . . . . . . . . . . . . . . . . Combat Hostiles . | . . . . . . . . . . . . . . . . . . . . . . . . Parts Melted 9 | 1 1 3 . 1 . . . . . . . . . . . . . 1 1 . . . 1 Heat Transferred 6032 | 519 928 565 . . . . . . . . . . . . . . . 191 564 1221 444 407 1193 Parts Sabotaged . | . . . . . . . . . . . . . . . . . . . . . . . . Parts Stolen . | . . . . . . . . . . . . . . . . . . . . . . . . Parts Stripped . | . . . . . . . . . . . . . . . . . . . . . . . . Power Chain Reactions 2 | . . 2 . . . . . . . . . . . . . . . . . . . . . Missiles Intercepted . | . . . . . . . . . . . . . . . . . . . . . . . . Alert | -11 -10 -9 -9 -8 -8 -7 -7 -7 -7 -6 -6 -6 -6 -6 -5 -5 -5 -5 -4 -4 -4 -4 -4 ------- Run | Scr Mat Mat Min Mat Sto Fac Low Low Dat Pro Fac Gar Fac Gar Fac Gar Fac Gar Fac Ext Cet Arc Hub Peak Influence 1342 | 25 279 725 446 1127 1342 642 . . . . 132 622 465 559 293 725 761 737 822 1227 1083 677 1148 Average Influence 580 | 8 184 440 322 755 949 553 . . . . 67 414 358 496 293 454 533 613 639 832 901 606 656 Maximum Alert Level 4 | . 1 3 2 4 4 2 . . . . . 2 2 2 1 3 3 3 3 4 3 2 4 Low Security (%) 8 | 100 44 14 . 4 . . . . . . 100 14 . . . . . . . . . . . Level 1 22 | . 55 28 71 11 . . . . . . . 18 76 20 100 42 7 12 16 18 . . 34 Level 2 36 | . . 44 28 19 14 100 . . . . . 67 23 79 . 37 78 52 31 15 8 100 16 Level 3 26 | . . 13 . 57 57 . . . . . . . . . . 20 13 35 52 36 91 . 40 Level 4 6 | . . . . 6 28 . . . . . . . . . . . . . . 29 . . 8 Level 5 . | . . . . . . . . . . . . . . . . . . . . . . . . High Security . | . . . . . . . . . . . . . . . . . . . . . . . . Max Security . | . . . . . . . . . . . . . . . . . . . . . . . . Squads Dispatched 62 | . 6 8 . 9 10 3 . . . . . . 2 . . . 6 . 1 6 . . 11 Investigation 25 | . 4 5 . 6 4 1 . . . . . . . . . . 1 . . 2 . . 2 Extermination 1 | . . . . . . . . . . . . . . . . . . . 1 . . . . Reinforcement 17 | . 2 3 . 2 3 1 . . . . . . . . . . 1 . . 2 . . 3 Assault 6 | . . . . 1 1 . . . . . . . . . . . 1 . . 2 . . 1 Garrison 13 | . . . . . 2 1 . . . . . . 2 . . . 3 . . . . . 5 Intercept . | . . . . . . . . . . . . . . . . . . . . . . . . Construction Impeded 3 | . . . . 1 1 . . . . . . . . . . . . . . . . . 1 Haulers Reinforced 3 | . . . . . . 1 . . . . . . . . . . . . . . . . 2 Stealth | -11 -10 -9 -9 -8 -8 -7 -7 -7 -7 -6 -6 -6 -6 -6 -5 -5 -5 -5 -4 -4 -4 -4 -4 --------- Run | Scr Mat Mat Min Mat Sto Fac Low Low Dat Pro Fac Gar Fac Gar Fac Gar Fac Gar Fac Ext Cet Arc Hub Distress Signals 23 | . 1 3 1 3 2 . . . . . . . . . . . . . . 3 2 . 8 Communications Jammed . | . . . . . . . . . . . . . . . . . . . . . . . . Distress Signals . | . . . . . . . . . . . . . . . . . . . . . . . . Times Spotted 411 | . 10 42 9 47 45 11 21 4 4 8 3 15 3 13 . 13 19 23 12 41 15 20 33 Peak Tracking Total 19 | . 2 6 2 8 6 4 9 3 2 3 2 4 1 6 . 9 10 19 5 7 7 2 10 Tactical Retreats 9 | . . . 1 3 1 . . . . . . . . 1 . . . 1 . 2 . . . Traps | -11 -10 -9 -9 -8 -8 -7 -7 -7 -7 -6 -6 -6 -6 -6 -5 -5 -5 -5 -4 -4 -4 -4 -4 ------- Run | Scr Mat Mat Min Mat Sto Fac Low Low Dat Pro Fac Gar Fac Gar Fac Gar Fac Gar Fac Ext Cet Arc Hub Traps Triggered 17 | . 1 1 . . 1 . . . . . . 3 . 1 . 4 1 . . 5 . . . Indirectly . | . . . . . . . . . . . . . . . . . . . . . . . . Trap Hack Attempts . | . . . . . . . . . . . . . . . . . . . . . . . . Triggered . | . . . . . . . . . . . . . . . . . . . . . . . . Disarmed . | . . . . . . . . . . . . . . . . . . . . . . . . Reprogrammed . | . . . . . . . . . . . . . . . . . . . . . . . . Reused . | . . . . . . . . . . . . . . . . . . . . . . . . Traps Extracted . | . . . . . . . . . . . . . . . . . . . . . . . . Installed . | . . . . . . . . . . . . . . . . . . . . . . . . Triggered 1 | . . . . . . . . 1 . . . . . . . . . . . . . . . Machines | -11 -10 -9 -9 -8 -8 -7 -7 -7 -7 -6 -6 -6 -6 -6 -5 -5 -5 -5 -4 -4 -4 -4 -4 ---------- Run | Scr Mat Mat Min Mat Sto Fac Low Low Dat Pro Fac Gar Fac Gar Fac Gar Fac Gar Fac Ext Cet Arc Hub Machines Disabled 33 | . . 2 1 5 3 . . . . . . 1 . . . 4 2 1 . 5 1 4 4 Max in Single Turn 2 | . . 2 1 1 . . . . . . . 1 . . . 2 1 1 . 1 . 1 1 Garrison Access 1 | . . . . . 1 . . . . . . . . . . . . . . . . . . Garrison Relay 4 | . . . . . . . . . . . . 1 . . . 2 . 1 . . . . . Phase Generator 1 | . . . . . . . . . . . . . . . . 1 . . . . . . . Energy Cycler 2 | . . . . . . . . . . . . . . . . . . . . 2 . . . Machines Sabotaged . | . . . . . . . . . . . . . . . . . . . . . . . . Garrisons Compromised . | . . . . . . . . . . . . . . . . . . . . . . . . Overloaded Fab Kills . | . . . . . . . . . . . . . . . . . . . . . . . . Fab Network Shutdowns . | . . . . . . . . . . . . . . . . . . . . . . . . Hacking | -11 -10 -9 -9 -8 -8 -7 -7 -7 -7 -6 -6 -6 -6 -6 -5 -5 -5 -5 -4 -4 -4 -4 -4 --------- Run | Scr Mat Mat Min Mat Sto Fac Low Low Dat Pro Fac Gar Fac Gar Fac Gar Fac Gar Fac Ext Cet Arc Hub Machines Accessed 64 | . 4 10 . 9 11 3 2 . 4 . 1 . 2 . 1 . 1 . 2 9 1 . 4 Terminals 38 | . 4 5 . 6 8 1 . . . . . . 1 . . . . . 1 8 1 . 3 Fabricators . | . . . . . . . . . . . . . . . . . . . . . . . . Repair Stations 7 | . . 2 . . 2 1 . . . . . . . . . . . . 1 1 . . . Recycling Units 4 | . . 1 . 2 . 1 . . . . . . . . . . . . . . . . . Scanalyzers 3 | . . 2 . 1 . . . . . . . . . . . . . . . . . . . Garrison Access 6 | . . . . . 1 . . . . . 1 . 1 . 1 . 1 . . . . . 1 Total Hacks 230 | . 14 43 . 32 36 8 2 . 30 . 2 . 3 . 1 . 4 . 10 28 3 . 14 Successful 137 | . 6 30 . 21 23 6 2 . 30 . 1 . 2 . 1 . 1 . 4 4 1 . 5 Failed 90 | . 8 12 . 10 12 2 . . . . 1 . 1 . . . 3 . 6 24 2 . 9 Catastrophic 18 | . 1 . . . 3 . . . . . . . . . . . 1 . 1 10 . . 2 Database Lockouts 4 | . . 1 . 2 1 . . . . . . . . . . . . . . . . . . Manual 87 | . 9 6 . 15 20 2 . . . . . . . . . . 3 . 2 24 . . 6 Terminals 137 | . 14 21 . 24 28 1 . . . . . . 2 . . . . . 7 27 3 . 10 Fabricators . | . . . . . . . . . . . . . . . . . . . . . . . . Repair Stations 21 | . . 7 . . 6 4 . . . . . . . . . . . . 3 1 . . . Recycling Units 11 | . . 2 . 6 . 3 . . . . . . . . . . . . . . . . . Scanalyzers 15 | . . 13 . 2 . . . . . . . . . . . . . . . . . . . Garrison Access 14 | . . . . . 2 . . . . . 2 . 1 . 1 . 4 . . . . . 4 Terminal Hacks 79 | . 5 9 . 11 12 . 2 . 30 . . . 1 . . . . . 2 4 1 . 2 Record 11 | . . . . . . . . . 11 . . . . . . . . . . . . . . Part Schematic 10 | . . . . . . . . . 8 . . . . . . . . . . 1 . . 1 Robot Schematic 8 | . . . . . . . . . 8 . . . . . . . . . . . . . . Robot Analysis 8 | . 1 2 . 2 3 . . . . . . . . . . . . . . . . . . Prototype ID Bank 9 | . 2 1 . 1 1 . . . 3 . . . . . . . . . 1 . . . . Open Door 6 | . . . . . 3 . 2 . . . . . . . . . . . . . 1 . . Level Access Points 1 | . . . . . 1 . . . . . . . . . . . . . . . . . . Branch Access Points 3 | . . 1 . 1 . . . . . . . . 1 . . . . . . . . . . Terminal Index 2 | . . 1 . 1 . . . . . . . . . . . . . . . . . . . Scanalyzer Index 1 | . . . . 1 . . . . . . . . . . . . . . . . . . . Unreport Threat 8 | . . 1 . 1 3 . . . . . . . . . . . . . . 3 . . . Locate Traps 6 | . 1 1 . 1 1 . . . . . . . . . . . . . 1 . . . 1 Hauler Manifests 2 | . 1 1 . . . . . . . . . . . . . . . . . . . . . Zone Layout 4 | . . 1 . 3 . . . . . . . . . . . . . . . . . . . Fabricator Hacks . | . . . . . . . . . . . . . . . . . . . . . . . . Repair Station Hacks 17 | . . 5 . . 6 4 . . . . . . . . . . . . 2 . . . . Scan Component 9 | . . 3 . . 3 2 . . . . . . . . . . . . 1 . . . . Repair 8 | . . 2 . . 3 2 . . . . . . . . . . . . 1 . . . . Recycling Unit Hacks 5 | . . 1 . 3 . 1 . . . . . . . . . . . . . . . . . Report Inventory 4 | . . 1 . 2 . 1 . . . . . . . . . . . . . . . . . Retrieve Components 1 | . . . . 1 . . . . . . . . . . . . . . . . . . . Scanalyzer 14 | . . 13 . 1 . . . . . . . . . . . . . . . . . . . Insert Component 7 | . . 6 . 1 . . . . . . . . . . . . . . . . . . . Analyze 7 | . . 7 . . . . . . . . . . . . . . . . . . . . . Garrison Access Hacks 6 | . . . . . 1 . . . . . 1 . 1 . 1 . 1 . . . . . 1 Unlock Access 5 | . . . . . . . . . . . 1 . 1 . 1 . 1 . . . . . 1 Seal Access 1 | . . . . . 1 . . . . . . . . . . . . . . . . . . Unauthorized Hacks 16 | . 1 2 . 6 4 1 . . . . . . . . . . . . . . . . 2 Terminals 12 | . 1 1 . 4 4 . . . . . . . . . . . . . . . . . 2 Track 2 | . . . . 1 1 . . . . . . . . . . . . . . . . . . Botnet 9 | . 1 1 . 3 3 . . . . . . . . . . . . . . . . . 1 Sabotage 1 | . . . . . . . . . . . . . . . . . . . . . . . 1 Fabricators . | . . . . . . . . . . . . . . . . . . . . . . . . Repair Stations . | . . . . . . . . . . . . . . . . . . . . . . . . Recycling Units 4 | . . 1 . 2 . 1 . . . . . . . . . . . . . . . . . Tunnel 4 | . . 1 . 2 . 1 . . . . . . . . . . . . . . . . . Scanalyzers . | . . . . . . . . . . . . . . . . . . . . . . . . Garrison Access . | . . . . . . . . . . . . . . . . . . . . . . . . Data Cores Recovered 1 | . . . . . . . . . . . . . . . . . . . . . . . 1 Used . | . . . . . . . . . . . . . . . . . . . . . . . . Hacking Detections 53 | . 4 9 . 9 10 2 . . . . 1 . 2 . 1 . 1 . 2 9 . . 3 Full Trace Events 18 | . 4 3 . 4 4 . . . . . . . . . . . . . . 2 . . 1 Feedback Events 1 | . . 1 . . . . . . . . . . . . . . . . . . . . . Corruption 1 | . . 1 . . . . . . . . . . . . . . . . . . . . . Feedback Blocked . | . . . . . . . . . . . . . . . . . . . . . . . . Robot Schematics Acquired 8 | . . . . . . . . . 8 . . . . . . . . . . . . . . Robots Built . | . . . . . . . . . . . . . . . . . . . . . . . . Matter . | . . . . . . . . . . . . . . . . . . . . . . . . Time . | . . . . . . . . . . . . . . . . . . . . . . . . Total Robot Build Rating . | . . . . . . . . . . . . . . . . . . . . . . . . Part Schematics Acquired 16 | . . 6 . . . . . . 8 . . . . . . . . . . 1 . . 1 Parts Built . | . . . . . . . . . . . . . . . . . . . . . . . . Matter . | . . . . . . . . . . . . . . . . . . . . . . . . Time . | . . . . . . . . . . . . . . . . . . . . . . . . Total Part Build Rating . | . . . . . . . . . . . . . . . . . . . . . . . . Parts Repaired 6 | . . 2 . . 2 2 . . . . . . . . . . . . . . . . . Time 437 | . . 83 . . 176 70 . . . . . . . . . . . . 108 . . . . Parts Recycled . | . . . . . . . . . . . . . . . . . . . . . . . . Recycled Matter . | . . . . . . . . . . . . . . . . . . . . . . . . Retrieved Matter . | . . . . . . . . . . . . . . . . . . . . . . . . Retrieved Components 9 | . . . . 9 . . . . . . . . . . . . . . . . . . . Parts Scanalyzed 7 | . . 6 . 1 . . . . . . . . . . . . . . . . . . . Part Schematics Acquired 6 | . . 6 . . . . . . . . . . . . . . . . . . . . . Parts Damaged 1 | . . 1 . . . . . . . . . . . . . . . . . . . . . Bothacking | -11 -10 -9 -9 -8 -8 -7 -7 -7 -7 -6 -6 -6 -6 -6 -5 -5 -5 -5 -4 -4 -4 -4 -4 ------------ Run | Scr Mat Mat Min Mat Sto Fac Low Low Dat Pro Fac Gar Fac Gar Fac Gar Fac Gar Fac Ext Cet Arc Hub Used RIF Installer 4 | . . . . . . . . . . . . 1 . 1 . 1 . 1 . . . . . Patrol Navigation 1 | . . . . . . . . . . . . . . . . 1 . . . . . . . Structural Interface 1 | . . . . . . . . . . . . . . 1 . . . . . . . . . Autooverride 1 | . . . . . . . . . . . . . . . . . . 1 . . . . . Robots Hacked 6 | . . . . . 1 . . . 1 . . . . . . . . 2 . 2 . . . Non-combat . | . . . . . . . . . . . . . . . . . . . . . . . . Combat 6 | . . . . . 1 . . . 1 . . . . . . . . 2 . 2 . . . Autooverrided 2 | . . . . . . . . . . . . . . . . . . . . 2 . . . Robot Hacks Applied 6 | . . . . . 2 . . . 2 . . . . . . . . 2 . . . . . parse_system 4 | . . . . . 2 . . . 2 . . . . . . . . . . . . . . overwrite_iff 2 | . . . . . . . . . . . . . . . . . . 2 . . . . . Relay Couplers Released 17 | . . . . . . . . . . . . 5 . . . 9 . 3 . . . . . Machine Destruction 17 | . . . . . . . . . . . . 5 . . . 9 . 3 . . . . . Attached 2 | . . . . . . . . . . . . . . . . . . 1 1 . . . . Robots Rewired 13 | . . . . . . . 2 . . . . . . . . . . . . 11 . . . Allies Hacked . | . . . . . . . . . . . . . . . . . . . . . . . . Hacks Repelled 1 | . . . . . . . . . . . . . . . . . . . 1 . . . . Allies | -11 -10 -9 -9 -8 -8 -7 -7 -7 -7 -6 -6 -6 -6 -6 -5 -5 -5 -5 -4 -4 -4 -4 -4 -------- Run | Scr Mat Mat Min Mat Sto Fac Low Low Dat Pro Fac Gar Fac Gar Fac Gar Fac Gar Fac Ext Cet Arc Hub Total Allies 24 | . 1 . 2 . 1 . 2 . . . . . . . . . . 3 . 15 . . . Largest Group 9 | . 1 1 3 3 2 1 3 1 1 1 1 1 1 1 1 1 1 3 2 9 1 1 1 Highest-Rated Group 520 | . 57 68 112 121 174 89 134 92 110 110 125 129 125 124 128 128 135 246 241 520 175 177 177 Highest-Rated Ally 177 | . 57 68 67 79 99 89 94 92 110 110 125 129 125 124 128 128 135 131 142 167 175 177 177 Total Orders . | . . . . . . . . . . . . . . . . . . . . . . . . Ally Attacks 779 | . 11 61 14 96 57 16 42 2 18 10 1 22 17 20 . 15 30 42 24 210 21 8 42 Total Damage 30811 | . 258 1411 255 2331 2338 786 1460 172 579 429 . 1286 519 562 . 666 1149 1685 1033 8037 1700 1140 3015 Kills 234 | . 6 20 3 28 18 8 13 1 1 4 . 9 3 3 . 4 10 15 11 44 9 5 19 Allies Corrupted 1 | . . . . . . . . . . . . . . . . . . . . 1 . . . Allies Melted . | . . . . . . . . . . . . . . . . . . . . . . . . Intel | -11 -10 -9 -9 -8 -8 -7 -7 -7 -7 -6 -6 -6 -6 -6 -5 -5 -5 -5 -4 -4 -4 -4 -4 ------- Run | Scr Mat Mat Min Mat Sto Fac Low Low Dat Pro Fac Gar Fac Gar Fac Gar Fac Gar Fac Ext Cet Arc Hub Robot Analysis Total 123 | . 1 2 . 2 3 . . . 115 . . . . . . . . . . . . . . Derelict Logs Recovered 7 | . . . 2 . . . 2 2 . 1 . . . . . . . . . . . . . Drone Launches . | . . . . . . . . . . . . . . . . . . . . . . . . Drone Recoveries . | . . . . . . . . . . . . . . . . . . . . . . . . Exploration | -11 -10 -9 -9 -8 -8 -7 -7 -7 -7 -6 -6 -6 -6 -6 -5 -5 -5 -5 -4 -4 -4 -4 -4 ------------- Run | Scr Mat Mat Min Mat Sto Fac Low Low Dat Pro Fac Gar Fac Gar Fac Gar Fac Gar Fac Ext Cet Arc Hub Turns Passed 14888 | 190 412 1942 642 1002 888 551 1148 1202 287 648 179 591 168 358 85 491 453 557 507 1490 358 301 438 Spaces Moved 7512 | 113 315 1157 378 571 394 296 705 671 126 331 90 246 78 148 45 207 183 260 202 558 156 135 147 Core 7 | 7 . . . . . . . . . . . . . . . . . . . . . . . Treads 3625 | 29 . 286 . . . . . 398 126 331 90 246 78 148 45 207 183 260 202 558 156 135 147 Legs . | . . . . . . . . . . . . . . . . . . . . . . . . Wheels 3875 | 77 315 871 378 571 394 291 705 273 . . . . . . . . . . . . . . . Hover 5 | . . . . . . 5 . . . . . . . . . . . . . . . . . Flight . | . . . . . . . . . . . . . . . . . . . . . . . . Fastest Speed 50 | 50 100 100 120 110 110 130 120 120 178 178 186 186 186 186 186 186 183 180 180 172 172 172 172 Average Speed 151 | 112 100 132 137 118 146 138 129 157 178 184 186 186 186 186 186 186 185 180 180 178 172 172 172 Slowest Speed 205 | 160 100 180 140 140 150 160 130 178 178 186 186 186 186 186 186 186 205 183 180 180 172 172 180 Overloaded Moves . | . . . . . . . . . . . . . . . . . . . . . . . . Propulsion Burnouts . | . . . . . . . . . . . . . . . . . . . . . . . . Robots Hopped . | . . . . . . . . . . . . . . . . . . . . . . . . Cave-ins Triggered . | . . . . . . . . . . . . . . . . . . . . . . . . Exploration Rate (%) 43 | 6 55 90 57 49 61 10 87 73 78 54 4 36 4 29 2 55 4 46 5 78 66 77 27 Regions Visited 23 Branch Regions 10 Pre-discovered Areas 26 | . . 1 . 2 . 1 2 1 19 . . . . . . . . . . . . . . Known Exits Taken 11 | . . 1 . 1 1 . . . . . 1 . 1 . 1 . 1 . 1 1 1 1 . Unknown Exits Taken 8 | 1 1 . 1 . . 1 1 1 1 1 . . . . . . . . . . . . . Scrap Searched 8 | . . . 3 . . . 3 2 . . . . . . . . . . . . . . . Spaces Dug . | . . . . . . . . . . . . . . . . . . . . . . . . Terrain Destroyed 98 | . . 9 . . . . . . . . . . . . . 53 1 . . 17 5 1 12 Melee . | . . . . . . . . . . . . . . . . . . . . . . . . Projectile 37 | . . . . . . . . . . . . . . . . 1 1 . . 17 5 1 12 AOE 61 | . . 9 . . . . . . . . . . . . . 52 . . . . . . . Actions | -11 -10 -9 -9 -8 -8 -7 -7 -7 -7 -6 -6 -6 -6 -6 -5 -5 -5 -5 -4 -4 -4 -4 -4 --------- Run | Scr Mat Mat Min Mat Sto Fac Low Low Dat Pro Fac Gar Fac Gar Fac Gar Fac Gar Fac Ext Cet Arc Hub Total 9922 | 143 377 1457 455 735 587 419 886 794 162 349 96 342 90 209 47 274 240 321 324 972 212 184 247 Wait 1061 | . 27 140 38 41 83 71 92 73 4 3 1 58 3 42 . 25 9 19 92 174 21 21 24 Move 7485 | 112 314 1156 377 570 393 295 704 670 125 330 89 244 77 146 44 205 182 258 201 557 155 134 147 Hop . | . . . . . . . . . . . . . . . . . . . . . . . . Pick Up 151 | 8 5 27 6 15 10 11 2 7 4 1 . 2 1 . 1 4 3 8 8 17 5 2 4 Fast Attach 72 | 6 3 10 . . 5 5 6 7 1 . 1 . . 1 . . 7 4 5 6 2 . 3 Attach 57 | 1 . 3 1 6 2 4 3 3 1 . 1 . . 1 2 3 1 11 3 4 4 . 3 Detach 9 | . . . . . . 2 2 2 . . . . . . . . . 2 . . . . 1 Swap 53 | . 1 10 6 5 7 3 1 . 4 1 . 1 . . . 1 2 . 2 4 2 1 2 Drop 159 | 1 8 29 4 13 13 15 10 13 4 1 . 2 1 1 . 2 6 . 3 21 5 3 4 Fire 658 | 15 19 82 16 85 66 13 37 17 16 13 4 29 8 16 . 26 30 17 10 40 18 23 58 Melee 20 | . . . 7 . 8 . . . 3 . . . . . . . . 2 . . . . . Ram . | . . . . . . . . . . . . . . . . . . . . . . . . Kick . | . . . . . . . . . . . . . . . . . . . . . . . . Crush 4 | . . . . . . . . 1 . . . . . . . . . . . 2 . . 1 Escape Stasis 24 | . . . . . . . . . . . . 6 . 2 . 8 . . . 8 . . . Rewire 169 | . . . . . . . 29 1 . . . . . . . . . . . 139 . . . Trap . | . . . . . . . . . . . . . . . . . . . . . . . . Miscellaneous . | . . . . . . . . . . . . . . . . . . . . . . . . Route ------- -11/Scrapyard -10/Materials (discovered 3 exits: *Mat / [*Min x2]) -9/Materials (discovered 4 exits: *Mat x3 / *Min) -9/Mines -8/Materials (discovered 3 exits: *Fac / *Sto x2) -8/Storage -7/Factory -7/Lower Caves -7/Lower Caves -7/Data Miner -6/Proximity Caves -6/Factory (discovered 2 exits: Low / Gar) -6/Garrison -6/Factory (discovered 3 exits: Low x2 / Gar) -6/Garrison -5/Factory -5/Garrison -5/Factory -5/Garrison -4/Factory -4/Extension (discovered 3 exits: *Res x2 / *Cet) -4/Cetus (discovered 2 exits: *Res / *Arc) -4/Archives (discovered 2 exits: *Hub x2) -4/Hub_04(d) (discovered 1 exit: Gar) History --------- Turn | Location | Event 3 | -11/Scrapyard | Discovered new exit (range 16) 191 | -11/Scrapyard | Entered Materials 218 | -10/Materials | Discovered new exit (range 15) 307 | -10/Materials | Build established: Mutant 358 | -10/Materials | Discovered new exit (range 16) 581 | -10/Materials | Discovered new exit (range 16) 603 | -10/Materials | Entered another Materials area 603 | -9/Materials | Accompanied by 1 ally 603 | -9/Materials | Evolved 2 slots: Utility x2 653 | -9/Materials | Identified exit to Mines 1013 | -9/Materials | Repaired Med. Armor Plating 1066 | -9/Materials | Repaired Hvy. Ion Engine 1188 | -9/Materials | Discovered new exit (range 9) 1697 | -9/Materials | Central database locked down 1782 | -9/Materials | Discovered new exit (range 12) 2396 | -9/Materials | Discovered new exit (range 16) 2545 | -9/Materials | Entered Mines 2545 | -9/Mines | Accompanied by 1 ally 2607 | -9/Mines | Excavation squad dispatched 2607 | -9/Mines | A large section of the Mines collapsed 2743 | -9/Mines | Learned Materials terminal intel 2857 | -9/Mines | Excavation squad dispatched 3033 | -9/Mines | Received a Rocket Launcher from a helpful Derelict 3058 | -9/Mines | Discovered new exit (range 16) 3085 | -9/Mines | Learned 2 Materials zone layouts 3136 | -9/Mines | Found a damaged Exp. Sensor Array with a note attached 3141 | -9/Mines | Found Prototype Device 3142 | -9/Mines | Identified Exp. Sensor Array 3187 | -9/Mines | Entered Materials 3187 | -8/Materials | Accompanied by 3 allies 3187 | -8/Materials | Evolved 2 slots: Propulsion x1, Utility x1 3189 | -8/Materials | Loaded intel: 12 terminal locations 3192 | -8/Materials | Led the pair of lost Derelicts to an unsafe place 3247 | -8/Materials | Build established: Scavenger-Mutant 3420 | -8/Materials | Discovered new exit (range 4) 3508 | -8/Materials | Identified exit to Storage 3508 | -8/Materials | Central database locked down 3891 | -8/Materials | Lost 4 parts (2n1u1w) 3987 | -8/Materials | First assault squad dispatched 4189 | -8/Materials | Entered Storage 4189 | -8/Storage | Accompanied by 1 ally 4299 | -8/Storage | Core integrity fell below 50% 4347 | -8/Storage | Repaired Broken Exp. Sensor Array 4589 | -8/Storage | First assault squad dispatched 4751 | -8/Storage | Repaired Hardlight Generator 4766 | -8/Storage | Identified exit to Factory 4768 | -8/Storage | Met 01-MTF 4790 | -8/Storage | Destroyed 01-MTF 4807 | -8/Storage | Garrison activated, responded to threat 4871 | -8/Storage | Build established: Mutant 4949 | -8/Storage | Core integrity fell below 20% 5027 | -8/Storage | Central database locked down 5077 | -8/Storage | Entered Factory 5077 | -7/Factory | Accompanied by 1 ally 5077 | -7/Factory | Evolved 2 slots: Utility x1, Weapon x1 5236 | -7/Factory | Repaired Hardlight Generator 5274 | -7/Factory | Repaired Rnf. Ion Engine 5390 | -7/Factory | Build established: Tank 5557 | -7/Factory | Garrison activated, responded to threat 5619 | -7/Factory | Discovered new exit (range 4) 5628 | -7/Factory | Entered Lower Caves 5628 | -7/Lower Caves | Accompanied by 1 ally 5644 | -7/Lower Caves | Learned location of Extension (-4) 5689 | -7/Lower Caves | Found Prototype Device 5876 | -7/Lower Caves | Attracted the attention of an 0b10 outpost 6131 | -7/Lower Caves | Identified Heart of Steel 6257 | -7/Lower Caves | Encountered a Warlord checkpoint 6374 | -7/Lower Caves | Attracted the attention of an 0b10 checkpoint 6539 | -7/Lower Caves | Ambushed by wild Derelicts 6614 | -7/Lower Caves | Discovered new exit (range 11) 6666 | -7/Lower Caves | Spotted B-75 Beast 6685 | -7/Lower Caves | Allies destroyed B-75 Beast 6776 | -7/Lower Caves | Entered another Lower Caves area 6776 | -7/Lower Caves | Accompanied by 1 ally 6862 | -7/Lower Caves | Learned 8 Factory zone layouts 7083 | -7/Lower Caves | Attracted the attention of an 0b10 checkpoint 7943 | -7/Lower Caves | Discovered new exit (range 7) 7978 | -7/Lower Caves | Entered Data Miner 7978 | -7/Data Miner | Accompanied by 1 ally 7978 | -7/Data Miner | Discovered new exit (range 6) 8014 | -7/Data Miner | Met Data Miner 8053 | -7/Data Miner | Learned location of Section 7 (-2) 8053 | -7/Data Miner | Acquired the access code to Warlord's prototype stash 8082 | -7/Data Miner | Received God Mode back door access code from Data Miner 8139 | -7/Data Miner | Destroyed Data Miner 8143 | -7/Data Miner | Found Ghost Barrier 8144 | -7/Data Miner | Interfaced with the Data Conduit 8211 | -7/Data Miner | Found Exp. Thermal Shield 8265 | -7/Data Miner | Entered Proximity Caves 8265 | -6/Proximity Caves | Accompanied by 1 ally 8317 | -6/Proximity Caves | Spotted B-75 Beast 8324 | -6/Proximity Caves | Destroyed B-75 Beast 8435 | -6/Proximity Caves | Build established: Scavenger-Tank 8457 | -6/Proximity Caves | Attracted the attention of an 0b10 checkpoint 8852 | -6/Proximity Caves | Learned Factory emergency access door positions 8876 | -6/Proximity Caves | Discovered new exit (range 14) 8913 | -6/Proximity Caves | Entered Factory 8913 | -6/Factory | Accompanied by 1 ally 8913 | -6/Factory | Evolved 2 slots: Power x1, Utility x1 8914 | -6/Factory | Identified exit to Lower Caves 8916 | -6/Factory | Loaded intel: 275 machine locations 9062 | -6/Factory | Identified exit to Garrison 9092 | -6/Factory | Entered Garrison 9092 | -6/Garrison | Accompanied by 1 ally 9093 | -6/Garrison | Loaded intel: 22 machine locations 9178 | -6/Garrison | Triggered checkpoint 9228 | -6/Garrison | Triggered checkpoint 9392 | -6/Garrison | Discovered new exit (range 9) 9420 | -6/Garrison | Installed Relay Interface Framework 9500 | -6/Garrison | Triggered checkpoint 9580 | -6/Garrison | Garrison Relay disabled 9683 | -6/Garrison | Entered Factory 9683 | -6/Factory | Accompanied by 1 ally 9684 | -6/Factory | Loaded intel: 237 machine locations 9846 | -6/Factory | Identified exit to Garrison 9851 | -6/Factory | Entered Garrison 9851 | -6/Garrison | Accompanied by 1 ally 9852 | -6/Garrison | Loaded intel: 22 machine locations 9914 | -6/Garrison | Triggered checkpoint 9920 | -6/Garrison | Triggered checkpoint 10124 | -6/Garrison | Triggered checkpoint 10136 | -6/Garrison | Triggered checkpoint 10165 | -6/Garrison | Discovered new exit (range 14) 10200 | -6/Garrison | Expanded RIF knowledge: Structural Interface 10209 | -6/Garrison | Entered Factory 10209 | -5/Factory | Accompanied by 1 ally 10209 | -5/Factory | Evolved 2 slots: Utility x2 10210 | -5/Factory | Loaded intel: 276 machine locations 10292 | -5/Factory | Identified exit to Garrison 10294 | -5/Factory | Entered Garrison 10294 | -5/Garrison | Accompanied by 1 ally 10295 | -5/Garrison | Loaded intel: 19 machine locations 10335 | -5/Garrison | Garrison Relay disabled 10398 | -5/Garrison | Triggered checkpoint 10579 | -5/Garrison | Garrison Relay disabled 10609 | -5/Garrison | Discovered new exit (range 8) 10634 | -5/Garrison | Expanded RIF knowledge: Patrol Navigation 10686 | -5/Garrison | Phase Generator disabled 10694 | -5/Garrison | Triggered checkpoint 10785 | -5/Garrison | Entered Factory 10785 | -5/Factory | Accompanied by 1 ally 10786 | -5/Factory | Loaded intel: 274 machine locations 11085 | -5/Factory | First assault squad dispatched 11167 | -5/Factory | Lost 3 parts (2u1w) 11234 | -5/Factory | Identified exit to Garrison 11238 | -5/Factory | Entered Garrison 11238 | -5/Garrison | Accompanied by 1 ally 11239 | -5/Garrison | Loaded intel: 21 machine locations 11305 | -5/Garrison | Triggered checkpoint 11307 | -5/Garrison | Triggered checkpoint 11331 | -5/Garrison | Core integrity fell below 50% 11367 | -5/Garrison | Heart of Steel transformed into Warbot 11372 | -5/Garrison | Core integrity fell below 20% 11377 | -5/Garrison | Lost 14 parts (1p3n5u5w) 11511 | -5/Garrison | Discovered new exit (range 5) 11518 | -5/Garrison | Identified exit to Factory 11531 | -5/Garrison | Expanded RIF knowledge: Autooverride 11584 | -5/Garrison | Triggered checkpoint 11600 | -5/Garrison | Garrison Relay disabled 11795 | -5/Garrison | Entered Factory 11795 | -4/Factory | Accompanied by 2 allies 11795 | -4/Factory | Evolved 2 slots: Utility x2 11796 | -4/Factory | Loaded intel: 256 machine locations 12031 | -4/Factory | Discovered new exit (range 6) 12040 | -4/Factory | Identified exit to Extension 12302 | -4/Factory | Entered Extension 12302 | -4/Extension | Accompanied by 2 allies 12303 | -4/Extension | Loaded intel: 35 machine locations 12317 | -4/Extension | Rescued a captive Derelict 12322 | -4/Extension | Rescued a captive Derelict 12323 | -4/Extension | Rescued a captive Derelict 12328 | -4/Extension | Rescued a captive Derelict 12334 | -4/Extension | Rescued a captive Derelict 12339 | -4/Extension | Rescued a captive Derelict 12340 | -4/Extension | Rescued a captive Derelict 12341 | -4/Extension | Rescued a captive Derelict 12354 | -4/Extension | Rescued a captive Derelict 12450 | -4/Extension | Build established: Bothacker-Skirmisher 12949 | -4/Extension | Spotted B-86 Titan 12961 | -4/Extension | Spotted B-86 Titan 12977 | -4/Extension | Allies destroyed B-86 Titan 12983 | -4/Extension | Allies destroyed B-86 Titan 13000 | -4/Extension | Build established: Scavenger-Tank 13000 | -4/Extension | Discovered new exit (range 15) 13016 | -4/Extension | Extracted ID and sensor layout for unrecognized location from A7's data core 13052 | -4/Extension | First assault squad dispatched 13058 | -4/Extension | Found Hvy. Reflective Plating 13475 | -4/Extension | Disrupted transfer network 13502 | -4/Extension | Discovered new exit (range 10) 13504 | -4/Extension | Lost 4 parts (1p1n1u1w) 13504 | -4/Extension | Discovered new exit (range 6) 13543 | -4/Extension | Identified exit to Research 13588 | -4/Extension | Identified exit to Cetus 13792 | -4/Extension | Entered Cetus 13792 | -4/Cetus | Accompanied by 1 ally 13793 | -4/Cetus | Loaded intel: 24 machine locations 13813 | -4/Cetus | Spotted Cetus Guard 13813 | -4/Cetus | Spotted Cetus Guard 13817 | -4/Cetus | Spotted Cetus Guard 13821 | -4/Cetus | Destroyed Cetus Guard 13822 | -4/Cetus | Allies destroyed Cetus Guard 13823 | -4/Cetus | Spotted Cetus Guard 13825 | -4/Cetus | Allies destroyed Cetus Guard 13834 | -4/Cetus | Destroyed Cetus Guard 13867 | -4/Cetus | Cetus Manufacturing Module disabled 13987 | -4/Cetus | Discovered new exit (range 15) 14022 | -4/Cetus | Spotted Cetus Guard 14022 | -4/Cetus | Spotted Cetus Guard 14026 | -4/Cetus | Spotted Cetus Guard 14038 | -4/Cetus | Destroyed Cetus Guard 14039 | -4/Cetus | Allies destroyed Cetus Guard 14048 | -4/Cetus | Allies destroyed Cetus Guard 14069 | -4/Cetus | Discovered exit to Research (range 16) 14086 | -4/Cetus | Met Revision 17 14146 | -4/Cetus | Identified exit to Archives 14150 | -4/Cetus | Entered Archives 14150 | -4/Archives | Accompanied by 1 ally 14151 | -4/Archives | Loaded intel: 8 machine locations 14245 | -4/Archives | Discovered new exit (range 16) 14283 | -4/Archives | Unable to access archive contents 14311 | -4/Archives | Unable to access archive contents 14316 | -4/Archives | Discovered new exit (range 16) 14340 | -4/Archives | Identified exit to Hub_04(d) 14451 | -4/Archives | Entered Hub_04(d) 14451 | -4/Hub_04(d) | Accompanied by 1 ally 14452 | -4/Hub_04(d) | Loaded intel: 86 machine locations 14572 | -4/Hub_04(d) | Garrison activated, responded to threat 14622 | -4/Hub_04(d) | Lost 3 parts (3u) 14635 | -4/Hub_04(d) | Destroyed 8 combat bots 14672 | -4/Hub_04(d) | Garrison activated, responded to threat 14701 | -4/Hub_04(d) | First assault squad dispatched 14813 | -4/Hub_04(d) | Core integrity fell below 50% 14816 | -4/Hub_04(d) | Identified exit to Garrison 14881 | -4/Hub_04(d) | Core integrity fell below 20% 14882 | -4/Hub_04(d) | Garrison activated, responded to threat 14889 | -4/Hub_04(d) | Core destroyed Last Messages --------------- 14865_ Y-64 Sentinel destroyed. 14865_ Slug penetrates Wall. 14866_ Acquired 9 matter. 14872_ W-44 Eye sends out distress signal. 14875_ Dropped Adv. Medium Treads. 14875_ Acquired Med. Treads. 14876_ Acquired 10 matter. 14881_ RIF reveals location of hidden door. 14882_ A-15 Conveyor calls for garrison support. 14882_ ALERT: Activating Garrison Access H001. 14882_ Slug penetrates A-15 Conveyor. 14882_ Control Node disabled. 14883_ Acquired 9 matter. 14883_ A-15 Conveyor calls for reinforcements. 14883_ ALERT: Hostile activity reported, dispatching reinforcements to area. 14885_ Slug penetrates A-15 Conveyor. 14885_ A-15 Conveyor destroyed. 14885_ Slug penetrates Wall. 14886_ Acquired 9 matter. Map ----- +----------------------------------------------------+ | | | | | | | ?????????????????????????????????????????????????? | | ?????????????????????????????????????????????????? | | ?????????????????????????????????????????????????? | | ?????????????????????????????????????????????????? | | ??????????????""""???????????????????????????????? | | ?????""""?????""""???????????????????????????????? | | ?????""""?????""""???????????????????????????????? | | ?????""""?????""""?????????????????????????"?????? | | ?????""""???????????????????"?????????????"""????? | | ??????????????""""?? #?????"""???????????"""""???? | | ??????????????""""? #????"""""?????????"""""""??? | | ??????????????""""? #???"""""""?????????"""""???? | | ??????????????"""" #????"""""???????????"""????? | | ???????????#? #?????"""?????????????"?????? | | ???????????# """" ???????"????????????????????? | | ??########## """" ?????????????????????????????? | | ??# # """" ?????????????????????????????? | | ??# #? """" ??????????????????????????????? | | ??# #?? ????????????#??????????????????? | | ??# #?###+##?????????? ##########???????""" | | ??+ / ### !##########! ??????""" | | ??# !/" T = =![==!/! ????????""" | | ??# % "## !=%=%@!%/!*#???????????????""" | | ??# =!### #######/######?????????????????? | | ??# #?######????? ???????""""??????????? | | #####""""#"##########??? ??????""""??????????? | | %" """G""" #?? !! " #?????""""??"""?????? | | " """>""" " #?? !! " +?????""""???G"?????? | | + " #?# #???????????"""?????? | | % " " ### = ] #???????????????????? | | [% " * "#########???????????????????? | | * =[[" = ##???????????????????????????? | | !!! = " "#???????????????????????????? | | ##"##"######+#############???????????????????????? | | /|%=*%%%! /!%% %= """???????????????????? | | %/%%**=*|==! * "T"???????????????????? | | !%|!%%=%!*%%* % ?????????????????????? | | ############+##"######### ??????????????????????? | | = !" *" % !=##????????????????????????????????? | | #### " " [%#?????????????????????????????????? | | #??# " "T"[#?????????????????????????????????? | | #??# " " "!+????"""????"??"??????????????????? | | *#??# #!??????????"??"??????????????????? | | ####??# " " " #!!??"""????"??"??????????????????? | | ??????# " " " !#?/ ??????????????????????????????? | | ??????# " " " #? ?""??????????????????????????? | | ???????? ]#?? T"??????????????????????????? | +----------------------------------------------------+ Best States ------------- Heat Dissipation 69 Coolant Potential 100 Energy Generation 39 Energy Capacity 560 Matter Stores 300 Matter Capacity 300 Sight Range 16 Robot Scan Range 30 Terrain Scan Range 16 Terrain Scan Density 60 Armor Coverage 1400 Resistance: KI 25 Resistance: TH 30 Resistance: EX 50 Weapon Shielding 66 Reclamation Efficiency 10 Weapon Cycling 20 Phase Shifting 10 Evasion (%) 50 Target Analysis 6 Recoil Reduction 3 Particle Charging 25 Offensive Hacking 10 Defensive Hacking 20 Item Schematics ----------------- Hrd. Light Armor Plating | -9/Materials | Scanalyzed Arm. Wheel | -9/Materials | Scanalyzed Imp. Treads | -9/Materials | Scanalyzed Shield Generator | -9/Materials | Scanalyzed Imp. Assault Rifle | -9/Materials | Scanalyzed Lgt. Armor Plating | -9/Materials | Scanalyzed Combat Drone Bay | -7/Data Miner | Free Lgt. Regenerative Plating | -7/Data Miner | Free Exp. Flexi-carbon Leg | -7/Data Miner | Free Triangulator | -7/Data Miner | Free Exp. Terrain Scan Processor | -7/Data Miner | Free Exp. Targeting Computer | -7/Data Miner | Free Mni. Smartbomb Launcher | -7/Data Miner | Free Plasma Sword | -7/Data Miner | Free Imp. Heavy Siege Treads | -4/Extension | Hacked Imp. Overload Amplifier | -4/Hub_04(d) | Hacked Robot Schematics ------------------ S-27 Virus | -7/Data Miner | Free G-50 Soldier | -7/Data Miner | Free G-67 Veteran | -7/Data Miner | Free L-41 Fighter | -7/Data Miner | Free H-66 Slayer | -7/Data Miner | Free P-70 Sage | -7/Data Miner | Free I-36 Angel | -7/Data Miner | Free I-47 Archangel | -7/Data Miner | Free Fabricated ------------ Nothing Alien Tech Used ----------------- None Achievements -------------- None Challenges ------------ None Player 2 | -11 -10 -9 -9 -8 -8 -7 -7 -7 -7 -6 -6 -6 -6 -6 -5 -5 -5 -5 -4 -4 -4 -4 -4 ---------- Run | Scr Mat Mat Min Mat Sto Fac Low Low Dat Pro Fac Gar Fac Gar Fac Gar Fac Gar Fac Ext Cet Arc Hub Slots Evolved 12 | . 2 . 2 . 2 . . . . 2 . . . 2 . . . 2 . . . . . Power 2 | . . . 1 . . . . . . . . . . 1 . . . . . . . . . Propulsion 6 | . 2 . 1 . . . . . . . . . . 1 . . . 2 . . . . . Utility 2 | . . . . . 1 . . . . 1 . . . . . . . . . . . . . Weapon 2 | . . . . . 1 . . . . 1 . . . . . . . . . . . . . Parts Attached 264 | . 10 23 6 22 19 4 8 1 8 3 5 9 5 7 5 7 21 16 16 41 2 2 24 Parts Lost 89 | . . 2 4 4 3 . 2 . 3 1 . 2 3 3 . 4 10 15 . 3 1 . 29 Damage Taken 15856 | . 22 654 298 1109 646 236 374 16 382 409 11 583 532 533 . 655 687 2091 181 2104 350 72 3911 Core 2179 | . . 119 . 99 103 46 44 . 48 . . 58 77 52 . 125 96 326 . 222 29 . 735 Player 2/Cogmind (%) 68 | . . 83 . 40 52 100 51 . 100 . . 87 100 74 . 74 44 59 . 81 26 . 97 Absorbed by Shields 261 | . . . . . . . . . . . 3 174 14 . . . . 70 . . . . . Damage Inflicted 24137 | . 258 1411 108 1909 2338 786 1265 172 579 429 . 1286 519 562 . 666 1149 976 335 3534 1700 1140 3015 Player 2/Cogmind (%) 50 | . 40 46 24 49 49 67 49 22 47 44 . 61 65 53 . 48 45 70 35 58 57 56 42 Combat Hostiles Destroyed 147 | . 4 17 1 20 15 4 9 1 1 4 . 9 3 3 . 4 6 7 . 20 7 2 10 Player 2/Cogmind (%) 45 | . 44 50 12 50 39 66 47 25 25 44 . 52 60 30 . 33 46 53 . 64 53 50 34 Game ------ Seed DataControlFacilitator Manual? 0 Play Time 03:18:13 Cumulative 188.6 hours Start 2020.09.03 @ 10:57:55 End 2020.09.03 @ 14:37:19 Sessions 1 Manual Loads 0 Difficulty Rogue Special Mode AFD2020/Player2 Game No. 75 Rogue 75 Adventurer 0 Explorer 0 Win Type - Total 3 Types 2/0/0/1/0/0/0 Lore% 80 Gallery% 76 Achievement% 67 Wizard Run 0 Options --------- ASCII 0 Keyboard 0 Movement Numpad Keybinds 0 Fullscreen 1 Font 18/SmallcapsGlow Map View 76x50 Tactical HUD 1 Map Filters NONE Filters NONE Steam X RUN: 5226f911-2ce6-4915-9b85-05a75571edd1